[Event "Titled Tuesday Blitz March 15 Late 2022"]
[White "Hakobyan, Aram"]
[Black "Martin Duque, Jesus"]
[WhiteFideId "13306677"]
[BlackFideId "2208954"]
[WhiteElo "2557"]
[BlackElo "2243"]
[Result "1-0"]
[Round "02"]
[TimeControl "180+1"]
[Date "2022.03.15"]
[WhiteClock "0:00:06"]
[BlackClock "0:00:16"]

1. d4 {[%clk 0:03:00]}  Nf6 {[%clk 0:02:59]} 2. c4 {[%clk 0:03:00]}  b6 {[%clk 0:03:00]} 3. Nf3 {[%clk 0:02:58]}  Bb7 {[%clk 0:03:00]} 4. a3 {[%clk 0:02:58]}  e6 {[%clk 0:02:59]} 5. Nc3 {[%clk 0:02:55]}  d5 {[%clk 0:02:59]} 6. Bg5 {[%clk 0:02:55]}  Be7 {[%clk 0:02:59]} 7. Bxf6 {[%clk 0:02:54]}  Bxf6 {[%clk 0:02:58]} 8. cxd5 {[%clk 0:02:54]}  exd5 {[%clk 0:02:59]} 9. Qb3 {[%clk 0:02:55]}  O-O {[%clk 0:02:58]} 10. Rd1 {[%clk 0:02:55]}  Re8 {[%clk 0:02:58]} 11. e3 {[%clk 0:02:55]}  c6 {[%clk 0:02:51]} 12. Bd3 {[%clk 0:02:52]}  Nd7 {[%clk 0:02:51]} 13. O-O {[%clk 0:02:51]}  g6 {[%clk 0:02:45]} 14. Rfe1 {[%clk 0:02:51]}  Bg7 {[%clk 0:02:45]} 15. Bb1 {[%clk 0:02:51]}  Nf6 {[%clk 0:02:45]} 16. Ba2 {[%clk 0:02:44]}  Ne4 {[%clk 0:02:42]} 17. Nxe4 {[%clk 0:02:40]}  Rxe4 {[%clk 0:02:43]} 18. Rc1 {[%clk 0:02:39]}  Qe7 {[%clk 0:02:39]} 19. Qd3 {[%clk 0:02:10]}  Re8 {[%clk 0:02:35]} 20. b4 {[%clk 0:02:09]}  g5 {[%clk 0:02:33]} 21. Nd2 {[%clk 0:02:03]}  Re6 {[%clk 0:02:29]} 22. Nf1 {[%clk 0:02:01]}  Qf6 {[%clk 0:02:14]} 23. Ng3 {[%clk 0:01:56]}  Bf8 {[%clk 0:02:13]} 24. b5 {[%clk 0:01:48]}  c5 {[%clk 0:02:09]} 25. dxc5 {[%clk 0:01:48]}  Bxc5 {[%clk 0:01:55]} 26. Bxd5 {[%clk 0:01:46]}  Rd6 {[%clk 0:01:55]} 27. Nh5 {[%clk 0:01:22]}  Qh6 {[%clk 0:01:47]} 28. Bxf7+ {[%clk 0:00:41]}  Kxf7 {[%clk 0:01:46]} 29. Qf5+ {[%clk 0:00:42]}  Kg8 {[%clk 0:01:45]} 30. Ng3 {[%clk 0:00:41]}  Rf6 {[%clk 0:01:31]} 31. Qd7 {[%clk 0:00:38]}  Re7 {[%clk 0:01:31]} 32. Qd8+ {[%clk 0:00:35]}  Rf8 {[%clk 0:01:31]} 33. Qd2 {[%clk 0:00:29]}  Ref7 {[%clk 0:01:28]} 34. Rf1 {[%clk 0:00:21]}  g4 {[%clk 0:01:27]} 35. Rc4 {[%clk 0:00:19]}  Rxf2 {[%clk 0:01:17]} 36. Rxg4+ {[%clk 0:00:15]}  Kh8 {[%clk 0:01:17]} 37. Rxf2 {[%clk 0:00:10]}  Bxe3 {[%clk 0:01:17]} 38. Qc3+ {[%clk 0:00:09]}  Rf6 {[%clk 0:00:56]} 39. Nf5 {[%clk 0:00:07]}  Bxf2+ {[%clk 0:00:50]} 40. Kxf2 {[%clk 0:00:08]}  Qf8 {[%clk 0:00:45]} 41. Rf4 {[%clk 0:00:08]}  Qc5+ {[%clk 0:00:41]} 42. Qxc5 {[%clk 0:00:09]}  bxc5 {[%clk 0:00:42]} 43. g4 {[%clk 0:00:08]}  h5 {[%clk 0:00:41]} 44. h3 {[%clk 0:00:08]}  hxg4 {[%clk 0:00:41]} 45. hxg4 {[%clk 0:00:09]}  a6 {[%clk 0:00:39]} 46. g5 {[%clk 0:00:04]}  Rb6 {[%clk 0:00:37]} 47. bxa6 {[%clk 0:00:04]}  Rxa6 {[%clk 0:00:37]} 48. g6 {[%clk 0:00:03]}  Rxa3 {[%clk 0:00:29]} 49. Rh4+ {[%clk 0:00:03]}  Kg8 {[%clk 0:00:29]} 50. Ne7+ {[%clk 0:00:04]}  Kg7 {[%clk 0:00:29]} 51. Rh7+ {[%clk 0:00:04]}  Kf6 {[%clk 0:00:29]} 52. Rf7+ {[%clk 0:00:05]}  Ke6 {[%clk 0:00:28]} 53. g7 {[%clk 0:00:04]}  Ra8 {[%clk 0:00:26]} 54. Rf8 {[%clk 0:00:03]}  Ra2+ {[%clk 0:00:25]} 55. Ke3 {[%clk 0:00:04]}  Ra3+ {[%clk 0:00:23]} 56. Kd2 {[%clk 0:00:05]}  Ra2+ {[%clk 0:00:20]} 57. Kc3 {[%clk 0:00:05]}  Rg2 {[%clk 0:00:16]} 58. g8=Q+ {[%clk 0:00:05]}  Rxg8 {[%clk 0:00:16]} 59. Nxg8 {[%clk 0:00:06]} 1-0


[Site "https://www.chess.com"]

[Event "Titled Tuesday Blitz March 15 Late 2022"]
[White "Hess, Max"]
[Black "Xu, Yi"]
[WhiteFideId "24656666"]
[BlackFideId "8605564"]
[WhiteElo "2276"]
[BlackElo "2471"]
[Result "0-1"]
[Round "02"]
[TimeControl "180+1"]
[Date "2022.03.16"]
[WhiteClock "0:00:12"]
[BlackClock "0:00:45"]

1. d4 {[%clk 0:02:39]}  Nf6 {[%clk 0:02:59]} 2. Nf3 {[%clk 0:02:39]}  d5 {[%clk 0:02:59]} 3. g3 {[%clk 0:02:37]}  e6 {[%clk 0:02:58]} 4. Bg2 {[%clk 0:02:37]}  Be7 {[%clk 0:02:58]} 5. O-O {[%clk 0:02:37]}  O-O {[%clk 0:02:59]} 6. c4 {[%clk 0:02:37]}  dxc4 {[%clk 0:02:59]} 7. Qc2 {[%clk 0:02:35]}  a6 {[%clk 0:02:59]} 8. a4 {[%clk 0:02:33]}  Bd7 {[%clk 0:02:59]} 9. Rd1 {[%clk 0:02:29]}  Bc6 {[%clk 0:02:59]} 10. Nc3 {[%clk 0:02:29]}  Bxf3 {[%clk 0:02:59]} 11. Bxf3 {[%clk 0:02:30]}  Nc6 {[%clk 0:03:00]} 12. Bxc6 {[%clk 0:02:30]}  bxc6 {[%clk 0:03:00]} 13. Bg5 {[%clk 0:02:30]}  Rb8 {[%clk 0:02:59]} 14. e3 {[%clk 0:02:28]}  Nd5 {[%clk 0:02:32]} 15. Bxe7 {[%clk 0:02:26]}  Qxe7 {[%clk 0:02:32]} 16. Ne4 {[%clk 0:02:23]}  Qb4 {[%clk 0:02:25]} 17. a5 {[%clk 0:01:54]}  Qxb2 {[%clk 0:01:52]} 18. Qxc4 {[%clk 0:01:49]}  Qb5 {[%clk 0:01:52]} 19. Rdc1 {[%clk 0:01:43]}  Ne7 {[%clk 0:01:50]} 20. Nc5 {[%clk 0:01:38]}  Qxc4 {[%clk 0:01:33]} 21. Rxc4 {[%clk 0:01:37]}  Ra8 {[%clk 0:01:33]} 22. Rb1 {[%clk 0:01:20]}  Rfc8 {[%clk 0:01:33]} 23. Nd7 {[%clk 0:01:04]}  f6 {[%clk 0:01:26]} 24. Rb7 {[%clk 0:00:57]}  Kf7 {[%clk 0:01:21]} 25. Nc5 {[%clk 0:00:53]}  Rcb8 {[%clk 0:01:11]} 26. Rxc7 {[%clk 0:00:46]}  Rb5 {[%clk 0:00:59]} 27. Nb7 {[%clk 0:00:35]}  Kf8 {[%clk 0:00:48]} 28. Rc5 {[%clk 0:00:30]}  Rb1+ {[%clk 0:00:45]} 29. Kg2 {[%clk 0:00:30]}  Ra7 {[%clk 0:00:45]} 30. Rxe7 {[%clk 0:00:12]}  Kxe7 {[%clk 0:00:45]} 0-1


[Site "https://www.chess.com"]

[Event "Titled Tuesday Blitz March 15 Late 2022"]
[White "Hess, Robert"]
[Black "Risteski, Emil"]
[WhiteFideId "2022036"]
[BlackFideId "15005267"]
[WhiteElo "2557"]
[BlackElo "2070"]
[Result "1-0"]
[Round "02"]
[TimeControl "180+1"]
[Date "2022.03.15"]
[WhiteClock "0:00:23"]
[BlackClock "0:00:04"]

1. b3 {[%clk 0:02:58]}  e5 {[%clk 0:02:58]} 2. Bb2 {[%clk 0:02:58]}  Nc6 {[%clk 0:02:54]} 3. e3 {[%clk 0:02:58]}  d5 {[%clk 0:02:49]} 4. d3 {[%clk 0:02:58]}  f5 {[%clk 0:02:48]} 5. Nd2 {[%clk 0:02:58]}  Nf6 {[%clk 0:02:48]} 6. g3 {[%clk 0:02:56]}  Bd6 {[%clk 0:02:41]} 7. Bg2 {[%clk 0:02:56]}  O-O {[%clk 0:02:37]} 8. Ne2 {[%clk 0:02:56]}  Be6 {[%clk 0:02:32]} 9. a3 {[%clk 0:02:53]}  a5 {[%clk 0:02:32]} 10. Nf3 {[%clk 0:02:53]}  e4 {[%clk 0:02:28]} 11. Nfd4 {[%clk 0:02:50]}  Nxd4 {[%clk 0:02:21]} 12. Nxd4 {[%clk 0:02:51]}  Bd7 {[%clk 0:02:21]} 13. Qd2 {[%clk 0:02:50]}  Qe7 {[%clk 0:02:15]} 14. O-O {[%clk 0:02:48]}  Be5 {[%clk 0:02:09]} 15. Rab1 {[%clk 0:02:23]}  Ra6 {[%clk 0:01:35]} 16. a4 {[%clk 0:02:12]}  g5 {[%clk 0:01:16]} 17. f4 {[%clk 0:02:05]}  gxf4 {[%clk 0:00:56]} 18. gxf4 {[%clk 0:01:48]}  Bd6 {[%clk 0:00:56]} 19. Bh3 {[%clk 0:01:46]}  Ng4 {[%clk 0:00:51]} 20. Kh1 {[%clk 0:01:35]}  Bb4 {[%clk 0:00:47]} 21. c3 {[%clk 0:01:14]}  Bc5 {[%clk 0:00:45]} 22. Rg1 {[%clk 0:01:07]}  Rg6 {[%clk 0:00:40]} 23. c4 {[%clk 0:00:55]}  exd3 {[%clk 0:00:36]} 24. Bxg4 {[%clk 0:00:52]}  Bxd4 {[%clk 0:00:24]} 25. Bf3 {[%clk 0:00:45]}  Bxe3 {[%clk 0:00:21]} 26. Bxd5+ {[%clk 0:00:40]}  Rf7 {[%clk 0:00:18]} 27. Qc3 {[%clk 0:00:36]}  Qe4+ {[%clk 0:00:02]} 28. Bxe4 {[%clk 0:00:35]}  Rfg7 {[%clk 0:00:03]} 29. Qxg7+ {[%clk 0:00:34]}  Rxg7 {[%clk 0:00:02]} 30. Rxg7+ {[%clk 0:00:34]}  Kf8 {[%clk 0:00:03]} 31. Bd5 {[%clk 0:00:26]}  d2 {[%clk 0:00:03]} 32. Rxd7 {[%clk 0:00:24]}  c6 {[%clk 0:00:04]} 33. Be6 {[%clk 0:00:23]} 1-0


[Site "https://www.chess.com"]

[Event "Titled Tuesday Blitz March 15 Late 2022"]
[White "Jacobson, Brandon"]
[Black "Kozlov, Gennady"]
[WhiteFideId "30901561"]
[BlackFideId "4191668"]
[WhiteElo "2362"]
[BlackElo "2392"]
[Result "1-0"]
[Round "02"]
[TimeControl "180+1"]
[Date "2022.03.15"]
[WhiteClock "0:00:12"]
[BlackClock "0:01:00"]

1. Nf3 {[%clk 0:02:59]}  d5 {[%clk 0:02:59]} 2. c4 {[%clk 0:02:58]}  c6 {[%clk 0:03:00]} 3. e3 {[%clk 0:02:58]}  Nf6 {[%clk 0:03:00]} 4. Nc3 {[%clk 0:02:59]}  e6 {[%clk 0:02:59]} 5. b3 {[%clk 0:03:00]}  Be7 {[%clk 0:02:59]} 6. Bb2 {[%clk 0:03:00]}  O-O {[%clk 0:03:00]} 7. Qc2 {[%clk 0:03:01]}  a5 {[%clk 0:02:58]} 8. d4 {[%clk 0:02:57]}  Na6 {[%clk 0:02:58]} 9. a3 {[%clk 0:02:56]}  Bd7 {[%clk 0:02:57]} 10. Bd3 {[%clk 0:02:50]}  Nc7 {[%clk 0:02:56]} 11. e4 {[%clk 0:02:48]}  dxe4 {[%clk 0:02:52]} 12. Nxe4 {[%clk 0:02:49]}  h6 {[%clk 0:02:52]} 13. Nxf6+ {[%clk 0:02:41]}  Bxf6 {[%clk 0:02:51]} 14. Qe2 {[%clk 0:02:41]}  Re8 {[%clk 0:02:39]} 15. Qe4 {[%clk 0:02:34]}  g6 {[%clk 0:02:36]} 16. Ne5 {[%clk 0:02:34]}  Bxe5 {[%clk 0:02:36]} 17. Qxe5 {[%clk 0:02:29]}  f6 {[%clk 0:02:22]} 18. Qe4 {[%clk 0:02:09]}  f5 {[%clk 0:02:22]} 19. Qe5 {[%clk 0:02:10]}  Re7 {[%clk 0:02:23]} 20. O-O-O {[%clk 0:02:07]}  Ne8 {[%clk 0:02:20]} 21. d5 {[%clk 0:01:52]}  Ng7 {[%clk 0:02:20]} 22. d6 {[%clk 0:01:41]}  Rf7 {[%clk 0:02:20]} 23. f4 {[%clk 0:01:41]}  Qb6 {[%clk 0:02:15]} 24. Bc2 {[%clk 0:01:36]}  c5 {[%clk 0:02:13]} 25. g4 {[%clk 0:01:36]}  a4 {[%clk 0:02:11]} 26. gxf5 {[%clk 0:01:33]}  exf5 {[%clk 0:02:11]} 27. Rhg1 {[%clk 0:01:31]}  Re8 {[%clk 0:02:11]} 28. Qc3 {[%clk 0:01:30]}  Re6 {[%clk 0:02:10]} 29. Rd3 {[%clk 0:00:53]}  axb3 {[%clk 0:02:02]} 30. Bxb3 {[%clk 0:00:53]}  Be8 {[%clk 0:01:35]} 31. Qd2 {[%clk 0:00:39]}  Rd7 {[%clk 0:01:25]} 32. Be5 {[%clk 0:00:39]}  g5 {[%clk 0:01:20]} 33. Ba4 {[%clk 0:00:33]}  Rf7 {[%clk 0:01:20]} 34. d7 {[%clk 0:00:29]}  Bxd7 {[%clk 0:01:17]} 35. Bxd7 {[%clk 0:00:29]}  Ree7 {[%clk 0:01:14]} 36. Rd6 {[%clk 0:00:21]}  Qa7 {[%clk 0:01:10]} 37. Bb2 {[%clk 0:00:13]}  b6 {[%clk 0:01:08]} 38. fxg5 {[%clk 0:00:13]}  h5 {[%clk 0:01:03]} 39. g6 {[%clk 0:00:12]}  Rxd7 {[%clk 0:01:00]} 40. gxf7+ {[%clk 0:00:12]}  Rxf7 {[%clk 0:01:01]} 41. Rd8+ {[%clk 0:00:12]}  Kh7 {[%clk 0:01:01]} 42. Qh6+ {[%clk 0:00:11]}  Kxh6 {[%clk 0:01:00]} 43. Rh8# {[%clk 0:00:12]} 1-0


[Site "https://www.chess.com"]

[Event "Titled Tuesday Blitz March 15 Late 2022"]
[White "Jaferian, Koosha"]
[Black "Tabatabaei, M. Amin"]
[WhiteFideId "12507440"]
[BlackFideId "12521213"]
[WhiteElo "2030"]
[BlackElo "2544"]
[Result "0-1"]
[Round "02"]
[TimeControl "180+1"]
[Date "2022.03.15"]
[WhiteClock "0:00:06"]
[BlackClock "0:00:05"]

1. e4 {[%clk 0:03:00]}  e6 {[%clk 0:02:59]} 2. d4 {[%clk 0:02:59]}  d5 {[%clk 0:03:00]} 3. Bd3 {[%clk 0:03:00]}  dxe4 {[%clk 0:02:59]} 4. Bxe4 {[%clk 0:03:01]}  Nf6 {[%clk 0:03:00]} 5. Bf3 {[%clk 0:02:59]}  c5 {[%clk 0:02:56]} 6. Ne2 {[%clk 0:02:59]}  Nc6 {[%clk 0:02:56]} 7. Be3 {[%clk 0:02:59]}  Nd5 {[%clk 0:02:38]} 8. Bxd5 {[%clk 0:02:56]}  Qxd5 {[%clk 0:02:39]} 9. Nbc3 {[%clk 0:02:56]}  Qxg2 {[%clk 0:02:39]} 10. Rg1 {[%clk 0:02:54]}  Qxh2 {[%clk 0:02:38]} 11. Bf4 {[%clk 0:02:54]}  Qh4 {[%clk 0:02:22]} 12. Nb5 {[%clk 0:02:53]}  f6 {[%clk 0:02:23]} 13. Nc7+ {[%clk 0:02:51]}  Kf7 {[%clk 0:02:23]} 14. Nxa8 {[%clk 0:02:52]}  cxd4 {[%clk 0:02:24]} 15. Nc7 {[%clk 0:02:37]}  g5 {[%clk 0:01:57]} 16. Bg3 {[%clk 0:02:31]}  Qe4 {[%clk 0:01:58]} 17. Qd3 {[%clk 0:02:24]}  Qxd3 {[%clk 0:01:58]} 18. cxd3 {[%clk 0:02:25]}  e5 {[%clk 0:01:57]} 19. O-O-O {[%clk 0:02:06]}  h5 {[%clk 0:01:56]} 20. f3 {[%clk 0:01:55]}  a6 {[%clk 0:01:50]} 21. Nd5 {[%clk 0:01:35]}  Be6 {[%clk 0:01:50]} 22. Nb6 {[%clk 0:01:35]}  Bxa2 {[%clk 0:01:47]} 23. Be1 {[%clk 0:01:18]}  Bc5 {[%clk 0:01:45]} 24. Na4 {[%clk 0:01:14]}  Bd6 {[%clk 0:01:45]} 25. Nb6 {[%clk 0:01:10]}  Bb3 {[%clk 0:01:40]} 26. Nc4 {[%clk 0:01:08]}  Bc5 {[%clk 0:01:33]} 27. Ng3 {[%clk 0:00:49]}  b5 {[%clk 0:01:16]} 28. Nd2 {[%clk 0:00:45]}  Bxd1 {[%clk 0:01:16]} 29. Kxd1 {[%clk 0:00:46]}  h4 {[%clk 0:01:15]} 30. Nge4 {[%clk 0:00:46]}  Be7 {[%clk 0:01:15]} 31. Nb3 {[%clk 0:00:42]}  Nd8 {[%clk 0:01:12]} 32. Nbc5 {[%clk 0:00:41]}  Ne6 {[%clk 0:01:02]} 33. Bb4 {[%clk 0:00:20]}  a5 {[%clk 0:00:54]} 34. Nxe6 {[%clk 0:00:19]}  Bxb4 {[%clk 0:00:54]} 35. Nc7 {[%clk 0:00:10]}  Rb8 {[%clk 0:00:43]} 36. Nd5 {[%clk 0:00:10]}  Be7 {[%clk 0:00:42]} 37. Ke2 {[%clk 0:00:09]}  Rd8 {[%clk 0:00:41]} 38. Nxe7 {[%clk 0:00:09]}  Kxe7 {[%clk 0:00:42]} 39. Rc1 {[%clk 0:00:09]}  f5 {[%clk 0:00:24]} 40. Nxg5 {[%clk 0:00:09]}  Rg8 {[%clk 0:00:24]} 41. Nh3 {[%clk 0:00:09]}  Rg2+ {[%clk 0:00:24]} 42. Nf2 {[%clk 0:00:09]}  h3 {[%clk 0:00:18]} 43. Rh1 {[%clk 0:00:08]}  h2 {[%clk 0:00:17]} 44. Kf1 {[%clk 0:00:09]}  Rg3 {[%clk 0:00:17]} 45. Ke2 {[%clk 0:00:06]}  Rg2 {[%clk 0:00:09]} 46. Kf1 {[%clk 0:00:07]}  Rg3 {[%clk 0:00:10]} 47. Ke2 {[%clk 0:00:07]}  Rg1 {[%clk 0:00:11]} 48. Rxh2 {[%clk 0:00:08]}  Rb1 {[%clk 0:00:11]} 49. Nd1 {[%clk 0:00:06]}  a4 {[%clk 0:00:11]} 50. Rh7+ {[%clk 0:00:06]}  Kd6 {[%clk 0:00:12]} 51. Rf7 {[%clk 0:00:06]}  f4 {[%clk 0:00:12]} 52. Rb7 {[%clk 0:00:06]}  Kc5 {[%clk 0:00:12]} 53. Re7 {[%clk 0:00:06]}  Kd5 {[%clk 0:00:12]} 54. Rb7 {[%clk 0:00:06]}  Kc6 {[%clk 0:00:10]} 55. Re7 {[%clk 0:00:06]}  b4 {[%clk 0:00:03]} 56. Rxe5 {[%clk 0:00:06]}  Kb6 {[%clk 0:00:04]} 57. Rd5 {[%clk 0:00:05]}  a3 {[%clk 0:00:04]} 58. bxa3 {[%clk 0:00:03]}  bxa3 {[%clk 0:00:05]} 59. Rxd4 {[%clk 0:00:03]}  a2 {[%clk 0:00:04]} 60. Ra4 {[%clk 0:00:03]}  a1=Q {[%clk 0:00:04]} 61. Rxa1 {[%clk 0:00:04]}  Rxa1 {[%clk 0:00:05]} 62. Nc3 {[%clk 0:00:04]}  Kc5 {[%clk 0:00:04]} 63. Ne4+ {[%clk 0:00:03]}  Kd4 {[%clk 0:00:04]} 64. Nd2 {[%clk 0:00:04]}  Ra2 {[%clk 0:00:05]} 65. Ke1 {[%clk 0:00:04]}  Kxd3 {[%clk 0:00:04]} 66. Ne4 {[%clk 0:00:04]}  Ke3 {[%clk 0:00:04]} 67. Kd1 {[%clk 0:00:04]}  Ra1+ {[%clk 0:00:04]} 68. Kc2 {[%clk 0:00:04]}  Kxf3 {[%clk 0:00:05]} 69. Nd2+ {[%clk 0:00:05]}  Ke2 {[%clk 0:00:04]} 70. Nb3 {[%clk 0:00:06]}  Ra2+ {[%clk 0:00:05]} 71. Kb1 {[%clk 0:00:06]}  Ra3 {[%clk 0:00:05]} 72. Kc2 {[%clk 0:00:06]}  Rxb3 {[%clk 0:00:05]} 0-1


[Site "https://www.chess.com"]

[Event "Titled Tuesday Blitz March 15 Late 2022"]
[White "Janaszak, Dawid"]
[Black "Krasteva, Beloslava"]
[WhiteFideId "1119206"]
[BlackFideId "2922029"]
[WhiteElo "2199"]
[BlackElo "1689"]
[Result "1-0"]
[Round "02"]
[TimeControl "180+1"]
[Date "2022.03.16"]
[WhiteClock "0:00:32"]
[BlackClock "0:00:01"]

1. e4 {[%clk 0:02:57]}  c5 {[%clk 0:02:59]} 2. Nc3 {[%clk 0:02:56]}  Nc6 {[%clk 0:02:59]} 3. Bb5 {[%clk 0:02:56]}  Nd4 {[%clk 0:02:58]} 4. Nf3 {[%clk 0:02:56]}  a6 {[%clk 0:02:58]} 5. Bd3 {[%clk 0:02:55]}  Nc6 {[%clk 0:02:57]} 6. O-O {[%clk 0:02:55]}  e6 {[%clk 0:02:54]} 7. e5 {[%clk 0:02:54]}  d5 {[%clk 0:02:48]} 8. exd6 {[%clk 0:02:54]}  Bxd6 {[%clk 0:02:48]} 9. Ne4 {[%clk 0:02:52]}  Be7 {[%clk 0:02:47]} 10. b3 {[%clk 0:02:51]}  Nf6 {[%clk 0:02:46]} 11. Bb2 {[%clk 0:02:52]}  O-O {[%clk 0:02:41]} 12. Qe2 {[%clk 0:02:51]}  Nd4 {[%clk 0:02:33]} 13. Nxd4 {[%clk 0:02:50]}  cxd4 {[%clk 0:02:34]} 14. c3 {[%clk 0:02:28]}  Nd5 {[%clk 0:02:15]} 15. Qf3 {[%clk 0:02:22]}  b6 {[%clk 0:01:55]} 16. Rfe1 {[%clk 0:02:10]}  Bb7 {[%clk 0:01:46]} 17. Rad1 {[%clk 0:02:04]}  Qd7 {[%clk 0:01:22]} 18. Bb1 {[%clk 0:02:01]}  f5 {[%clk 0:01:18]} 19. Qh3 {[%clk 0:01:34]}  fxe4 {[%clk 0:01:15]} 20. Bxe4 {[%clk 0:01:29]}  g6 {[%clk 0:01:12]} 21. cxd4 {[%clk 0:01:25]}  Nf4 {[%clk 0:01:07]} 22. Qe3 {[%clk 0:01:23]}  Rae8 {[%clk 0:00:41]} 23. d3 {[%clk 0:01:17]}  Bb4 {[%clk 0:00:21]} 24. Rf1 {[%clk 0:01:14]}  Nd5 {[%clk 0:00:19]} 25. Qh3 {[%clk 0:01:10]}  Nc3 {[%clk 0:00:17]} 26. Bxc3 {[%clk 0:00:41]}  Bxc3 {[%clk 0:00:17]} 27. Rc1 {[%clk 0:00:42]}  Bxd4 {[%clk 0:00:17]} 28. Kh1 {[%clk 0:00:42]}  Bxe4 {[%clk 0:00:16]} 29. dxe4 {[%clk 0:00:43]}  Qd6 {[%clk 0:00:14]} 30. Rfd1 {[%clk 0:00:43]}  e5 {[%clk 0:00:13]} 31. Qd3 {[%clk 0:00:42]}  Rxf2 {[%clk 0:00:11]} 32. Qxa6 {[%clk 0:00:42]}  Qf6 {[%clk 0:00:09]} 33. h3 {[%clk 0:00:39]}  Rf8 {[%clk 0:00:09]} 34. a4 {[%clk 0:00:39]}  Be3 {[%clk 0:00:08]} 35. Rb1 {[%clk 0:00:39]}  Qh4 {[%clk 0:00:07]} 36. Qc4+ {[%clk 0:00:34]}  Kh8 {[%clk 0:00:06]} 37. Qc3 {[%clk 0:00:34]}  Qg3 {[%clk 0:00:04]} 38. Rg1 {[%clk 0:00:32]}  Qf4 {[%clk 0:00:04]} 39. Rbe1 {[%clk 0:00:30]}  Bd2 {[%clk 0:00:03]} 40. Qd3 {[%clk 0:00:30]}  Bxe1 {[%clk 0:00:03]} 41. Rxe1 {[%clk 0:00:31]}  Qf6 {[%clk 0:00:03]} 42. Kg1 {[%clk 0:00:30]}  Rf4 {[%clk 0:00:02]} 43. a5 {[%clk 0:00:30]}  bxa5 {[%clk 0:00:01]} 44. Qb5 {[%clk 0:00:31]}  Qg5 {[%clk 0:00:01]} 45. b4 {[%clk 0:00:32]} 1-0


[Site "https://www.chess.com"]

[Event "Titled Tuesday Blitz March 15 Late 2022"]
[White "Janturin, Artur"]
[Black "Solon, Nathan"]
[WhiteFideId "4130022"]
[BlackFideId "2017229"]
[WhiteElo "2354"]
[BlackElo "2557"]
[Result "0-1"]
[Round "02"]
[TimeControl "180+1"]
[Date "2022.03.16"]
[WhiteClock "0:00:01"]
[BlackClock "0:00:50"]

1. b3 {[%clk 0:03:00]}  e5 {[%clk 0:02:53]} 2. Bb2 {[%clk 0:03:01]}  Nc6 {[%clk 0:02:51]} 3. e3 {[%clk 0:02:57]}  d5 {[%clk 0:02:51]} 4. Bb5 {[%clk 0:02:55]}  Ne7 {[%clk 0:02:51]} 5. Bxe5 {[%clk 0:02:51]}  a6 {[%clk 0:02:51]} 6. Bxc6+ {[%clk 0:02:50]}  Nxc6 {[%clk 0:02:52]} 7. Bg3 {[%clk 0:02:50]}  h5 {[%clk 0:02:50]} 8. h3 {[%clk 0:02:45]}  h4 {[%clk 0:02:49]} 9. Bh2 {[%clk 0:02:45]}  d4 {[%clk 0:02:49]} 10. Nf3 {[%clk 0:02:42]}  d3 {[%clk 0:02:42]} 11. O-O {[%clk 0:02:19]}  Bf5 {[%clk 0:02:37]} 12. e4 {[%clk 0:02:05]}  Be6 {[%clk 0:02:29]} 13. Nc3 {[%clk 0:01:43]}  Qd7 {[%clk 0:02:24]} 14. Nd5 {[%clk 0:01:30]}  Bxd5 {[%clk 0:02:18]} 15. exd5 {[%clk 0:01:31]}  Qxd5 {[%clk 0:02:18]} 16. Re1+ {[%clk 0:01:30]}  Be7 {[%clk 0:02:19]} 17. Ne5 {[%clk 0:01:10]}  Nd4 {[%clk 0:01:48]} 18. cxd3 {[%clk 0:00:43]}  O-O-O {[%clk 0:01:35]} 19. Rc1 {[%clk 0:00:18]}  Bd6 {[%clk 0:01:36]} 20. Qg4+ {[%clk 0:00:16]}  f5 {[%clk 0:01:35]} 21. Qf4 {[%clk 0:00:12]}  g5 {[%clk 0:01:28]} 22. Qe3 {[%clk 0:00:08]}  Rde8 {[%clk 0:01:21]} 23. Rc4 {[%clk 0:00:06]}  Nc6 {[%clk 0:01:09]} 24. Qf3 {[%clk 0:00:01]}  Qe6 {[%clk 0:00:50]} 0-1


[Site "https://www.chess.com"]

[Event "Titled Tuesday Blitz March 15 Late 2022"]
[White "Jaracz, Pawel"]
[Black "Rosenberg, Evan S"]
[WhiteFideId "1102222"]
[BlackFideId "2019299"]
[WhiteElo "2429"]
[BlackElo "2280"]
[Result "0-1"]
[Round "02"]
[TimeControl "180+1"]
[Date "2022.03.16"]
[WhiteClock "0:00:19"]
[BlackClock "0:00:14"]

1. e4 {[%clk 0:02:56]}  e5 {[%clk 0:02:59]} 2. Nf3 {[%clk 0:02:55]}  Nc6 {[%clk 0:03:00]} 3. Bb5 {[%clk 0:02:56]}  Nf6 {[%clk 0:03:00]} 4. Nc3 {[%clk 0:02:53]}  Nd4 {[%clk 0:02:57]} 5. Bc4 {[%clk 0:02:49]}  Bc5 {[%clk 0:02:55]} 6. d3 {[%clk 0:02:48]}  d6 {[%clk 0:02:52]} 7. h3 {[%clk 0:02:48]}  c6 {[%clk 0:02:51]} 8. O-O {[%clk 0:02:38]}  b5 {[%clk 0:02:46]} 9. Bb3 {[%clk 0:02:36]}  a5 {[%clk 0:02:47]} 10. a4 {[%clk 0:02:34]}  Nxb3 {[%clk 0:02:44]} 11. cxb3 {[%clk 0:02:34]}  b4 {[%clk 0:02:44]} 12. Ne2 {[%clk 0:02:33]}  Qb6 {[%clk 0:02:35]} 13. Ng3 {[%clk 0:02:28]}  h5 {[%clk 0:02:31]} 14. Bg5 {[%clk 0:02:24]}  Be6 {[%clk 0:02:22]} 15. Bxf6 {[%clk 0:02:16]}  gxf6 {[%clk 0:02:22]} 16. Nh4 {[%clk 0:02:15]}  O-O-O {[%clk 0:02:15]} 17. Nhf5 {[%clk 0:02:12]}  h4 {[%clk 0:02:08]} 18. Nh5 {[%clk 0:01:54]}  Bxf5 {[%clk 0:01:44]} 19. exf5 {[%clk 0:01:54]}  Rh6 {[%clk 0:01:44]} 20. Qg4 {[%clk 0:01:16]}  Rdh8 {[%clk 0:01:41]} 21. Qxh4 {[%clk 0:01:11]}  Rxh5 {[%clk 0:01:39]} 22. Qxf6 {[%clk 0:01:11]}  R8h7 {[%clk 0:01:07]} 23. Rac1 {[%clk 0:00:58]}  Qd8 {[%clk 0:00:54]} 24. Qxd8+ {[%clk 0:00:55]}  Kxd8 {[%clk 0:00:55]} 25. g3 {[%clk 0:00:44]}  Rxh3 {[%clk 0:00:53]} 26. Kg2 {[%clk 0:00:45]}  Rh2+ {[%clk 0:00:49]} 27. Kf3 {[%clk 0:00:45]}  Ke7 {[%clk 0:00:46]} 28. Rc4 {[%clk 0:00:31]}  Kd7 {[%clk 0:00:35]} 29. Rg4 {[%clk 0:00:31]}  R7h5 {[%clk 0:00:32]} 30. Ke4 {[%clk 0:00:27]}  Rxf2 {[%clk 0:00:29]} 31. Rxf2 {[%clk 0:00:26]}  Bxf2 {[%clk 0:00:30]} 32. Rg8 {[%clk 0:00:24]}  Bd4 {[%clk 0:00:24]} 33. g4 {[%clk 0:00:20]}  Rh3 {[%clk 0:00:22]} 34. f6 {[%clk 0:00:19]}  d5+ {[%clk 0:00:15]} 35. Kf5 {[%clk 0:00:19]}  Rf3+ {[%clk 0:00:15]} 36. Kg5 {[%clk 0:00:20]}  Be3+ {[%clk 0:00:14]} 37. Kh5 {[%clk 0:00:19]}  Rh3# {[%clk 0:00:14]} 0-1


[Site "https://www.chess.com"]